fUSD/lending_fUSD_20251206
["ID","MTS","AMOUNT","RATE_DAILY","PERIOD"]
[396575810,1765056649599,-500.0,0.00016438,2]
[396575811,1765056649608,-500.0,0.00016438,2]
[396575812,1765056649619,-500.0,0.00016438,2]
[396575813,1765056649629,-2533.05,0.00016438,2]
[396575814,1765056649644,-500.0,0.00016438,2]
[396575815,1765056649653,-500.0,0.00016438,2]
[396575816,1765056649662,-500.0,0.00016438,2]
[396575817,1765056649672,-573.44,0.00016438,2]
[396575818,1765056649682,-2389.02,0.00016438,2]
[396575819,1765056649691,-532.94,0.00016438,2]
[396575820,1765056649703,-500.0,0.00016438,2]
[396575821,1765056649713,-503.94744766,0.00016438,2]
[396575822,1765056649723,-2450.76,0.00016438,2]
[396575823,1765056649734,-760.56,0.00016438,2]
[396575824,1765056649746,-500.0,0.00016438,2]
[396575825,1765056649757,-500.0,0.00016438,2]
[396575826,1765056649766,-500.0,0.00016438,2]
[396575827,1765056649775,-500.0,0.00016438,2]
[396575828,1765056649785,-500.0,0.00016438,2]
[396575829,1765056649794,-1950.47,0.00016438,2]
[396575830,1765056649803,-2307.35,0.00016438,2]
[396575831,1765056649814,-500.0,0.00016438,2]
[396575832,1765056649826,-500.0,0.00016438,2]
[396575833,1765056649835,-505.10082525,0.00016438,2]
[396575834,1765056649844,-500.0,0.00016438,2]
[396575835,1765056649854,-500.0,0.00016438,2]
[396575836,1765056649864,-500.0,0.00016438,2]
[396575837,1765056649873,-151.0,0.00016438,2]
[396575838,1765056649884,-2654.54,0.00016438,2]
[396575839,1765056649895,-1992.78,0.00016438,2]
[396575840,1765056649906,-500.0,0.00016438,2]
[396575841,1765056649915,-500.0,0.00016438,2]
[396575842,1765056649925,-602.76,0.00016438,2]
[396575843,1765056649936,-2208.15,0.00016438,2]
[396575844,1765056649945,-589.23,0.00016438,2]
[396575845,1765056649955,-500.0,0.00016438,2]
[396575846,1765056649964,-151.0,0.00016438,2]
[396575847,1765056649973,-7324.72,0.00016438,2]
[396575848,1765056649983,-500.0,0.00016438,2]
[396575849,1765056649992,-151.0,0.00016438,2]
[396575850,1765056650001,-2827.89,0.00016438,2]
[396575851,1765056650010,-500.0,0.00016438,2]
[396575852,1765056650019,-151.0,0.00016438,2]
[396575853,1765056650028,-500.0,0.00016438,2]
[396575854,1765056650037,-500.0,0.00016438,2]
[396575855,1765056650047,-542.24,0.00016438,2]
[396575856,1765056650056,-151.0,0.00016438,2]
[396575857,1765056650065,-2824.54,0.00016438,2]
[396575858,1765056650074,-151.0,0.00016438,2]
[396575859,1765056650084,-515.11,0.00016438,2]
[396575860,1765056650093,-151.0,0.00016438,2]
[396575861,1765056650102,-2854.68,0.00016438,2]
[396575862,1765056650111,-503.02338719,0.00016438,2]
[396575863,1765056650121,-553.4,0.00016438,2]
[396575864,1765056650130,-500.0,0.00016438,2]
[396575865,1765056650140,-987.7,0.00016438,2]
[396575866,1765056650149,-500.0,0.00016438,2]
[396575867,1765056650158,-535.89,0.00016438,2]
[396575868,1765056650167,-2114.1,0.00016438,2]
[396575869,1765056650177,-500.0,0.00016438,2]
[396575870,1765056650186,-521.8393655,0.00016438,2]
[396575871,1765056650195,-500.0,0.00016438,2]
[396575872,1765056650204,-500.0,0.00016438,2]
[396575873,1765056650213,-151.0,0.00016438,2]
[396575874,1765056650222,-151.0,0.00016438,2]
[396575875,1765056650231,-500.0,0.00016438,2]
[396575876,1765056650242,-1000.0,0.00016438,2]
[396575877,1765056650252,-268.20798391,0.00016438,2]
[396575878,1765056650262,-2779.57,0.00016438,2]
[396575879,1765056650271,-1740.33,0.00016438,2]
[396575880,1765056650281,-957.52,0.00016438,2]
[396575881,1765056650290,-535.36,0.00016438,2]
[396575882,1765056650299,-500.0,0.00016438,2]
[396575883,1765056650310,-2145.43,0.00016438,2]
[396575884,1765056650319,-500.0,0.00016438,2]
[396575885,1765056650328,-500.0,0.00016438,2]
[396575886,1765056650338,-500.0,0.00016438,2]
[396575887,1765056650347,-2186.57,0.00016438,2]
[396575888,1765056650356,-9782.58,0.00016438,2]
[396575889,1765056650365,-157.138741,0.00016438,2]
[396575890,1765056650374,-500.0,0.00016438,2]
[396575891,1765056650384,-3567.09,0.00016438,2]
[396575892,1765056650393,-151.0,0.00016438,2]
[396575893,1765056650403,-500.0,0.00016438,2]
[396575894,1765056650412,-1315.76,0.00016438,2]
[396575895,1765056650421,-2552.29,0.00016438,2]
[396575896,1765056650431,-500.0,0.00016438,2]
[396575897,1765056650440,-500.0,0.00016438,2]
[396575898,1765056650449,-602.78,0.00016438,2]
[396575899,1765056650459,-500.0,0.00016438,2]
[396575900,1765056650468,-151.0,0.00016438,2]
[396575901,1765056650477,-500.0,0.00016438,2]
[396575902,1765056650486,-500.0,0.00016438,2]
[396575903,1765056650496,-2273.48,0.00016438,2]
[396575904,1765056650505,-500.0,0.00016438,2]
[396575905,1765056650514,-500.0,0.00016438,2]
[396575906,1765056650524,-2839.47,0.00016438,2]
[396575907,1765056650533,-2703.56,0.00016438,2]
[396575908,1765056650542,-2958.29,0.00016438,2]
[396575909,1765056650551,-500.0,0.00016438,2]
[396575910,1765056650562,-500.0,0.00016438,2]
[396575911,1765056650571,-887.81,0.00016438,2]
[396575912,1765056650580,-500.0,0.00016438,2]
[396575913,1765056650590,-500.0,0.00016438,2]
[396575914,1765056650600,-552.98,0.00016438,2]
[396575915,1765056650609,-2323.94,0.00016438,2]
[396575916,1765056650618,-500.0,0.00016438,2]
[396575917,1765056650627,-2557.21,0.00016438,2]
[396575918,1765056650636,-502.6129268,0.00016438,2]
[396575919,1765056650646,-500.0,0.00016438,2]
[396575920,1765056650655,-500.0,0.00016438,2]
[396575921,1765056650664,-500.53,0.00016438,2]
[396575922,1765056650673,-1436.99,0.00016438,2]
[396575923,1765056650682,-500.0,0.00016438,2]
[396575924,1765056650691,-500.0,0.00016438,2]
[396575925,1765056650700,-2809.65,0.00016438,2]
[396575926,1765056650708,-3025.16,0.00016438,2]
[396575927,1765056650717,-622.35,0.00016438,2]
[396575928,1765056650726,-1297.99,0.00016438,2]
[396575929,1765056650736,-500.0,0.00016438,2]
[396575930,1765056650748,-500.0,0.00016438,2]
[396575931,1765056650758,-9093.25,0.00016438,2]
[396575932,1765056650767,-500.0,0.00016438,2]
[396575933,1765056650776,-151.0,0.00016438,2]
[396575934,1765056650787,-500.0,0.00016438,2]
[396575935,1765056650796,-742.7,0.00016438,2]
[396575936,1765056650806,-2523.43,0.00016438,2]
[396575937,1765056650817,-500.0,0.00016438,2]
[396575938,1765056650830,-789.42,0.00016438,2]
[396575939,1765056650839,-503.4737313,0.00016438,2]
[396575940,1765056650849,-1040.27,0.00016438,2]
[396575941,1765056650859,-500.0,0.00016438,2]
[396575942,1765056650868,-1946.27,0.00016438,2]
[396575943,1765056650877,-500.0,0.00016438,2]
[396575944,1765056650886,-500.0,0.00016438,2]
[396575945,1765056650895,-500.0,0.00016438,2]
[396575946,1765056650904,-500.0,0.00016438,2]
[396575947,1765056650913,-500.0,0.00016438,2]
[396575948,1765056650923,-500.0,0.00016438,2]
[396575949,1765056650932,-878.18,0.00016438,2]
[396575950,1765056650942,-500.0,0.00016438,2]
[396575951,1765056650951,-151.0,0.00016438,2]
[396575952,1765056650960,-500.0,0.00016438,2]
[396575953,1765056650969,-151.0,0.00016438,2]
[396575954,1765056650978,-500.0,0.00016438,2]
[396575955,1765056650990,-500.0,0.00016438,2]
[396575956,1765056651000,-500.0,0.00016438,2]
[396575957,1765056651010,-529.76,0.00016438,2]
[396575958,1765056651020,-2686.58,0.00016438,2]
[396575959,1765056651029,-810.69,0.00016438,2]
[396575960,1765056651039,-499.31705567,0.00016438,2]
[396575961,1765056651049,-502.49133495,0.00016438,2]
[396575962,1765056651059,-500.0,0.00016438,2]
[396575963,1765056651068,-500.0,0.00016438,2]
[396575964,1765056651077,-2531.56,0.00016438,2]
[396575965,1765056651086,-500.0,0.00016438,2]
[396575966,1765056651095,-500.0,0.00016438,2]
[396575967,1765056651105,-666.49,0.00016438,2]
[396575968,1765056651114,-500.0,0.00016438,2]
[396575969,1765056651123,-151.0,0.00016438,2]
[396575970,1765056651132,-500.0,0.00016438,2]
[396575971,1765056651141,-500.0,0.00016438,2]
[396575972,1765056651150,-151.0,0.00016438,2]
[396575973,1765056651159,-151.0,0.00016438,2]
[396575974,1765056651168,-3739.09,0.00016438,2]
[396575975,1765056651177,-500.0,0.00016438,2]
[396575976,1765056651187,-151.0,0.00016438,2]
[396575977,1765056651196,-500.0,0.00016438,2]
[396575978,1765056651207,-853.21,0.00016438,2]
[396575979,1765056651216,-853.21,0.00016438,2]
[396575980,1765056651227,-853.21,0.00016438,2]
[396575981,1765056651237,-853.21,0.00016438,2]
[396575982,1765056651246,-853.21,0.00016438,2]
[396575983,1765056651257,-853.21,0.00016438,2]
[396575984,1765056651266,-853.21,0.00016438,2]
[396575985,1765056651275,-500.0,0.00016438,2]
[396575986,1765056651283,-500.0,0.00016438,2]
[396575987,1765056651292,-500.0,0.00016438,2]
[396575988,1765056651301,-500.0,0.00016438,2]
[396575989,1765056651310,-2471.17,0.00016438,2]
[396575990,1765056651319,-750.84,0.00016438,2]
[396575991,1765056651329,-500.0,0.00016438,2]
[396575992,1765056651340,-503.18398464,0.00016438,2]
[396575993,1765056651350,-549.45,0.00016438,2]
[396575994,1765056651359,-300.0,0.00016438,2]
[396575995,1765056651368,-500.0,0.00016438,2]
[396575996,1765056651377,-500.0,0.00016438,2]
[396575997,1765056651387,-744.5,0.00016438,2]
[396575998,1765056651396,-2485.92,0.00016438,2]
[396575999,1765056651405,-1969.09,0.00016438,2]
[396576000,1765056651415,-500.0,0.00016438,2]
[396576001,1765056651423,-500.0,0.00016438,2]
[396576002,1765056651432,-486.14398095,0.00016438,2]
[396576003,1765056651442,-500.0,0.00016438,2]
[396576004,1765056651451,-500.0,0.00016438,2]
[396576005,1765056651461,-500.0,0.00016438,2]
[396576006,1765056651470,-500.0,0.00016438,2]
[396576007,1765056651479,-500.0,0.00016438,2]
[396576008,1765056651488,-500.0,0.00016438,2]
[396576009,1765056651497,-500.0,0.00016438,2]
[396576010,1765056651506,-500.0,0.00016438,2]
[396576011,1765056651515,-2270.17,0.00016438,2]
[396576012,1765056651524,-500.0,0.00016438,2]
[396576013,1765056651533,-515.74,0.00016438,2]
[396576014,1765056651542,-500.0,0.00016438,2]
[396576015,1765056651551,-1954.29,0.00016438,2]
[396576016,1765056651560,-500.0,0.00016438,2]
[396576017,1765056651570,-2188.1,0.00016438,2]
[396576018,1765056651579,-500.0,0.00016438,2]
[396576019,1765056651588,-500.0,0.00016438,2]
[396576020,1765056651597,-152.313717,0.00016438,2]
[396576021,1765056651606,-302.41941747,0.00016438,2]
[396576022,1765056651615,-605.62,0.00016438,2]
[396576023,1765056651624,-500.0,0.00016438,2]
[396576024,1765056651633,-151.0,0.00016438,2]
[396576025,1765056651642,-500.0,0.00016438,2]
[396576026,1765056651651,-813.38,0.00016438,2]
[396576027,1765056651660,-1270.71,0.00016438,2]
[396576028,1765056651670,-500.0,0.00016438,2]
[396576029,1765056651678,-500.0,0.00016438,2]
[396576030,1765056651688,-501.01499024,0.00016438,2]
[396576031,1765056651698,-500.0,0.00016438,2]
[396576032,1765056651707,-500.0,0.00016438,2]
[396576033,1765056651717,-500.0,0.00016438,2]
[396576034,1765056651726,-3712.82,0.00016438,2]
[396576035,1765056651735,-500.0,0.00016438,2]
[396576036,1765056651746,-553.88,0.00016438,2]
[396576037,1765056651758,-659.11,0.00016438,2]
[396576038,1765056651767,-500.0,0.00016438,2]
[396576039,1765056651776,-151.0,0.00016438,2]
[396576040,1765056651786,-500.0,0.00016438,2]
[396576041,1765056651795,-500.0,0.00016438,2]
[396576042,1765056651804,-2146.97,0.00016438,2]
[396576043,1765056651813,-526.77,0.00016438,2]
[396576044,1765056651822,-500.0,0.00016438,2]
[396576045,1765056651831,-502.51415816,0.00016438,2]
[396576046,1765056651840,-500.0,0.00016438,2]
[396576047,1765056651849,-533.875102,0.00016438,2]
[396576048,1765056651859,-2911.1,0.00016438,2]
[396576049,1765056651868,-500.0,0.00016438,2]
[396576050,1765056651877,-500.0,0.00016438,2]
[396576051,1765056651886,-533.875102,0.00016438,2]
[396576052,1765056651895,-584.41,0.00016438,2]
[396576053,1765056651904,-533.875102,0.00016438,2]
[396576054,1765056651913,-1084.14,0.00016438,2]
[396576055,1765056651922,-501.36752178,0.00016438,2]
[396576056,1765056651931,-1048.67,0.00016438,2]
[396576057,1765056651940,-533.875102,0.00016438,2]
[396576058,1765056651949,-1379.62,0.00016438,2]
[396576059,1765056651959,-660.9,0.00016438,2]
[396576060,1765056651967,-2556.45,0.00016438,2]
[396576061,1765056651976,-609.28,0.00016438,2]
[396576062,1765056651986,-1748.73,0.00016438,2]
[396576063,1765056651995,-589.10380445,0.00016438,2]
[396576064,1765056652004,-151.0,0.00016438,2]
[396576065,1765056652013,-237.50164851,0.00016438,2]
[396576066,1765056652022,-500.0,0.00016438,2]
[396576067,1765056652032,-500.0,0.00016438,2]
[396576068,1765056652041,-500.0,0.00016438,2]
[396576069,1765056652050,-500.0,0.00016438,2]
[396576070,1765056652060,-2088.97,0.00016438,2]
[396576071,1765056652069,-501.78890317,0.00016438,2]
[396576072,1765056652078,-500.0,0.00016438,2]
[396576073,1765056652087,-2312.47,0.00016438,2]
[396576074,1765056652098,-500.0,0.00016438,2]
[396576075,1765056652108,-799.76,0.00016438,2]
[396576076,1765056652116,-500.0,0.00016438,2]
[396576077,1765056652127,-500.0,0.00016438,2]
[396576078,1765056652136,-500.0,0.00016438,2]
[396576079,1765056652145,-502.05482194,0.00016438,2]
[396576080,1765056652154,-500.0,0.00016438,2]
[396576081,1765056652163,-518.5,0.00016438,2]
[396576082,1765056652173,-270.0,0.00016444,2]
[396576083,1765056652183,-233.62617736,0.0001645,2]
[396576084,1765056652192,-1000.0,0.00016455,2]
[396576085,1765056652200,-1680.0,0.00016498,2]
[396576086,1765056652210,-270.0,0.00016506,2]
[396576087,1765056652219,-688.49839244,0.0001651,2]
[396576088,1765056652228,-853.21,0.00016547,2]
[396576089,1765056652237,-486.72,0.00016548,2]
[396576090,1765056652246,-480.22,0.00016548,2]
[396576091,1765056652255,-480.22,0.00016548,2]
[396576092,1765056652264,-480.22,0.00016548,2]
[396576093,1765056652273,-480.22,0.00016548,2]
[396576094,1765056652282,-492.99,0.00016548,2]
[396576095,1765056652291,-480.22,0.00016548,2]
[396576096,1765056652299,-480.22,0.00016548,2]
[396576097,1765056652308,-480.22,0.00016548,2]
[396576098,1765056652317,-480.22,0.00016548,2]
[396576099,1765056652326,-480.22,0.00016548,2]
[396576100,1765056652335,-270.0,0.0001656,2]
[396576101,1765056652345,-233.62617736,0.00016563,2]
[396576102,1765056652354,-853.09882412,0.00016598,2]
[396576103,1765056652364,-1000.0,0.000166,2]
[396576104,1765056652373,-157.43693316,0.00016619,2]
[396576105,1765056652382,-500.0,0.00016619,2]
[396576106,1765056652392,-2023.4543618,0.00016619,2]
[396576107,1765056652401,-233.62617736,0.00016675,2]
[396576108,1765056652411,-151.0,0.00016709,2]
[396576109,1765056652420,-180.23490756,0.00016709,2]
[396576110,1765056652429,-2132.68,0.00016711,2]
[396576111,1765056652437,-151.0,0.00016711,2]
[396576112,1765056652446,-151.0,0.00016711,2]
[396576113,1765056652455,-151.0,0.00016711,2]
[396576114,1765056652465,-151.0,0.00016711,2]
[396576115,1765056652476,-151.0,0.00016711,2]
[396576116,1765056652485,-190.134864,0.00016711,2]
[396576117,1765056652495,-151.0,0.00016711,2]
[396576118,1765056652504,-151.0,0.00016711,2]
[396576119,1765056652514,-853.21,0.00016711,2]
[396576120,1765056652524,-853.21,0.00016711,2]
[396576121,1765056652536,-853.21,0.00016711,2]
[396576122,1765056652546,-500.0,0.00016712,2]
[396576123,1765056652555,-500.0,0.00016712,2]
[396576124,1765056652564,-627.46,0.00016712,2]
[396576125,1765056652574,-500.0,0.00016712,2]
[396576126,1765056652583,-500.0,0.00016712,2]
[396576127,1765056652592,-500.0,0.00016712,2]
[396576128,1765056652602,-500.0,0.00016712,2]
[396576129,1765056652611,-500.0,0.00016712,2]
[396576130,1765056652620,-500.0,0.00016712,2]
[396576131,1765056652630,-395.51837045,0.00016712,2]
[396576132,1765056652639,-2047.37,0.00016712,2]
[396576133,1765056652648,-500.0,0.00016712,2]
[396576134,1765056652659,-500.0,0.00016712,2]
[396576135,1765056652668,-500.0,0.00016712,2]
[396576136,1765056652678,-500.0,0.00016712,2]
[396576137,1765056652689,-500.0,0.00016712,2]
[396576138,1765056652700,-500.0,0.00016712,2]
[396576139,1765056652709,-500.0,0.00016712,2]
[396576140,1765056652719,-500.0,0.00016712,2]
[396576141,1765056652728,-500.0,0.00016712,2]
[396576142,1765056652738,-500.0,0.00016712,2]
[396576143,1765056652751,-500.0,0.00016712,2]
[396576144,1765056652760,-500.0,0.00016712,2]
[396576145,1765056652770,-500.0,0.00016712,2]
[396576146,1765056652780,-500.0,0.00016712,2]
[396576147,1765056652790,-500.0,0.00016712,2]
[396576148,1765056652801,-500.0,0.00016712,2]
[396576149,1765056652810,-503.86480271,0.00016712,2]
[396576150,1765056652820,-500.0,0.00016712,2]
[396576151,1765056652832,-503.41926375,0.00016712,2]
[396576152,1765056652842,-503.76053218,0.00016712,2]
[396576153,1765056652852,-500.0,0.00016712,2]
[396576154,1765056652861,-500.0,0.00016712,2]
[396576155,1765056652870,-500.0,0.00016712,2]
[396576156,1765056652880,-500.0,0.00016712,2]
[396576157,1765056652888,-500.0,0.00016712,2]
[396576158,1765056652899,-500.0,0.00016712,2]
[396576159,1765056652908,-500.0,0.00016712,2]
[396576160,1765056652919,-2466.51,0.00016712,2]
[396576161,1765056652928,-500.0,0.00016712,2]
[396576162,1765056652937,-500.0,0.00016712,2]
[396576163,1765056652947,-500.0,0.00016712,2]
[396576164,1765056652956,-631.02420226,0.00016712,2]
[396576165,1765056652966,-505.26234168,0.00016712,2]
[396576166,1765056652976,-500.0,0.00016712,2]
[396576167,1765056652986,-1591.33,0.00016712,2]
[396576168,1765056652996,-500.0,0.00016712,2]
[396576169,1765056653005,-500.0,0.00016712,2]
[396576170,1765056653014,-2011.95,0.00016712,2]
[396576171,1765056653023,-500.0,0.00016712,2]
[396576172,1765056653033,-500.0,0.00016712,2]
[396576173,1765056653043,-500.0,0.00016712,2]
[396576174,1765056653052,-2194.33,0.00016712,2]
[396576175,1765056653062,-500.0,0.00016712,2]
[396576176,1765056653071,-500.0,0.00016712,2]
[396576177,1765056653081,-500.0,0.00016712,2]
[396576178,1765056653091,-500.0,0.00016712,2]
[396576179,1765056653101,-500.0,0.00016712,2]
[396576180,1765056653111,-500.0,0.00016712,2]
[396576181,1765056653121,-500.0,0.00016712,2]
[396576182,1765056653132,-500.0,0.00016712,2]
[396576183,1765056653148,-500.0,0.00016712,2]
[396576184,1765056653170,-504.55558342,0.00016712,2]
[396576185,1765056653181,-500.0,0.00016712,2]
[396576186,1765056653191,-500.0,0.00016712,2]
[396576187,1765056653202,-500.0,0.00016712,2]
[396576188,1765056653211,-500.0,0.00016712,2]
[396576189,1765056653221,-500.0,0.00016712,2]
[396576190,1765056653230,-500.0,0.00016712,2]
[396576191,1765056653240,-500.0,0.00016712,2]
[396576192,1765056653249,-502.28440473,0.00016712,2]
[396576193,1765056653258,-500.0,0.00016712,2]
[396576194,1765056653268,-2318.55,0.00016712,2]
[396576195,1765056653278,-500.0,0.00016712,2]
[396576196,1765056653287,-500.0,0.00016712,2]
[396576197,1765056653296,-500.0,0.00016712,2]
[396576198,1765056653306,-537.4,0.00016712,2]
[396576199,1765056653315,-500.0,0.00016712,2]
[396576200,1765056653325,-500.0,0.00016712,2]
[396576201,1765056653334,-502.04733105,0.00016712,2]
[396576202,1765056653343,-500.0,0.00016712,2]
[396576203,1765056653352,-503.68225415,0.00016712,2]
[396576204,1765056653362,-160.08600271,0.00016712,2]
[396576205,1765056653372,-812.78,0.00016712,2]
[396576206,1765056653382,-500.0,0.00016712,2]
[396576207,1765056653391,-500.0,0.00016712,2]
[396576208,1765056653401,-500.0,0.00016712,2]
[396576209,1765056653524,-500.0,0.00016712,2]
[396576210,1765056653534,-500.0,0.00016712,2]
[396576211,1765056653544,-500.0,0.00016712,2]
[396576212,1765056653554,-500.0,0.00016712,2]
[396576213,1765056653564,-500.0,0.00016712,2]
[396576214,1765056653574,-500.0,0.00016712,2]
[396576215,1765056653583,-2052.77,0.00016712,2]
[396576216,1765056653593,-500.0,0.00016712,2]
[396576217,1765056653602,-500.0,0.00016712,2]
[396576218,1765056653612,-500.0,0.00016712,2]
[396576219,1765056653621,-500.0,0.00016712,2]
[396576220,1765056653631,-500.0,0.00016712,2]
[396576221,1765056653640,-502.18039003,0.00016712,2]
[396576222,1765056653650,-500.0,0.00016712,2]
[396576223,1765056653660,-500.0,0.00016712,2]
[396576224,1765056653669,-500.0,0.00016712,2]
[396576225,1765056653679,-503.46625929,0.00016712,2]
[396576226,1765056653688,-500.0,0.00016712,2]
[396576227,1765056653698,-500.0,0.00016712,2]
[396576228,1765056653707,-500.0,0.00016712,2]
[396576229,1765056653718,-502.37825631,0.00016712,2]
[396576230,1765056653727,-500.0,0.00016712,2]
[396576231,1765056653737,-500.0,0.00016712,2]
[396576232,1765056653749,-500.0,0.00016712,2]
[396576233,1765056653759,-500.0,0.00016712,2]
[396576234,1765056653769,-301.67144987,0.00016712,2]
[396576235,1765056653778,-500.0,0.00016712,2]
[396576236,1765056653789,-500.0,0.00016712,2]
[396576237,1765056653799,-500.0,0.00016712,2]
[396576238,1765056653808,-500.0,0.00016712,2]
[396576239,1765056653818,-500.0,0.00016712,2]
[396576240,1765056653829,-500.0,0.00016712,2]
[396576241,1765056653838,-500.0,0.00016712,2]
[396576242,1765056653848,-502.94253642,0.00016712,2]
[396576243,1765056653858,-500.0,0.00016712,2]
[396576244,1765056653867,-505.93462661,0.00016712,2]
[396576245,1765056653877,-500.0,0.00016712,2]
[396576246,1765056653886,-500.0,0.00016712,2]
[396576247,1765056653896,-500.0,0.00016712,2]
[396576248,1765056653907,-500.0,0.00016712,2]
[396576249,1765056653916,-2172.1,0.00016712,2]
[396576250,1765056653925,-500.0,0.00016712,2]
[396576251,1765056653935,-500.0,0.00016712,2]
[396576252,1765056653944,-2476.18,0.00016712,2]
[396576253,1765056653953,-500.0,0.00016712,2]
[396576254,1765056653963,-547.2,0.00016712,2]
[396576255,1765056653973,-500.0,0.00016712,2]
[396576256,1765056653982,-1550.23,0.00016712,2]
[396576257,1765056653992,-2483.1,0.00016712,2]
[396576258,1765056654001,-500.0,0.00016712,2]
[396576259,1765056654011,-505.98218405,0.00016712,2]
[396576260,1765056654020,-515.83,0.00016712,2]
[396576261,1765056654030,-500.0,0.00016712,2]
[396576262,1765056654039,-500.0,0.00016712,2]
[396576263,1765056654049,-502.83435434,0.00016712,2]
[396576264,1765056654059,-500.0,0.00016712,2]
[396576265,1765056654068,-500.0,0.00016712,2]
[396576266,1765056654078,-500.0,0.00016712,2]
[396576267,1765056654088,-808.44,0.00016712,2]
[396576268,1765056654098,-500.0,0.00016712,2]
[396576269,1765056654108,-500.0,0.00016712,2]
[396576270,1765056654117,-500.0,0.00016712,2]
[396576271,1765056654127,-1000.0,0.00016712,2]
[396576272,1765056654136,-500.0,0.00016712,2]
[396576273,1765056654146,-500.0,0.00016712,2]
[396576274,1765056654155,-500.0,0.00016712,2]
[396576275,1765056654165,-500.0,0.00016712,2]
[396576276,1765056654174,-150.0,0.00016712,2]
[396576277,1765056654186,-500.0,0.00016712,2]
[396576278,1765056654196,-169.87557669,0.00016712,2]
[396576279,1765056654206,-2241.51,0.00016712,2]
[396576280,1765056654216,-561.72,0.00016712,2]
[396576281,1765056654226,-500.0,0.00016712,2]
[396576282,1765056654235,-151.0,0.00016712,2]
[396576283,1765056654244,-500.0,0.00016712,2]
[396576284,1765056654253,-500.0,0.00016712,2]
[396576285,1765056654264,-500.0,0.00016712,2]
[396576286,1765056654272,-500.0,0.00016712,2]
[396576287,1765056654283,-500.0,0.00016712,2]
[396576288,1765056654293,-500.0,0.00016712,2]
[396576289,1765056654303,-781.04,0.00016712,2]
[396576290,1765056654314,-500.0,0.00016712,2]
[396576291,1765056654324,-500.0,0.00016712,2]
[396576292,1765056654333,-500.0,0.00016712,2]
[396576293,1765056654343,-500.0,0.00016712,2]
[396576294,1765056654352,-339.37940199,0.00016712,2]
[396576295,1765056654362,-500.0,0.00016712,2]
[396576296,1765056654371,-500.0,0.00016712,2]
[396576297,1765056654381,-500.0,0.00016712,2]
[396576298,1765056654390,-500.0,0.00016712,2]
[396576299,1765056654399,-500.0,0.00016712,2]
[396576300,1765056654409,-503.77094397,0.00016712,2]
[396576301,1765056654418,-500.0,0.00016712,2]
[396576302,1765056654428,-533.28,0.00016712,2]
[396576303,1765056654438,-500.0,0.00016712,2]
[396576304,1765056654447,-500.0,0.00016712,2]
[396576305,1765056654459,-500.0,0.00016712,2]
[396576306,1765056654469,-500.0,0.00016712,2]
[396576307,1765056654478,-500.0,0.00016712,2]
[396576308,1765056654488,-500.0,0.00016712,2]
[396576309,1765056654497,-634.50262351,0.00016712,2]